[Event "Titled Tuesday Blitz March 08 Early 2022"]
[White "Mirzoev, Azer"]
[Black "Nguyen Hong Nhung"]
[WhiteFideId "13400304"]
[BlackFideId "12412201"]
[WhiteElo "2525"]
[BlackElo "1661"]
[Result "1-0"]
[Round "06"]
[TimeControl "180+1"]
[Date "2022.03.09"]
[WhiteClock "0:00:20"]
[BlackClock "0:00:01"]

1. Nf3 {[%clk 0:02:59]}  f5 {[%clk 0:02:59]} 2. d3 {[%clk 0:02:58]}  Nf6 {[%clk 0:03:00]} 3. c4 {[%clk 0:02:56]}  g6 {[%clk 0:02:59]} 4. Nc3 {[%clk 0:02:55]}  Bg7 {[%clk 0:02:59]} 5. e4 {[%clk 0:02:55]}  d6 {[%clk 0:02:59]} 6. e5 {[%clk 0:02:54]}  dxe5 {[%clk 0:02:58]} 7. Nxe5 {[%clk 0:02:55]}  Nbd7 {[%clk 0:02:54]} 8. Nxd7 {[%clk 0:02:52]}  Bxd7 {[%clk 0:02:54]} 9. d4 {[%clk 0:02:52]}  e6 {[%clk 0:02:51]} 10. Be2 {[%clk 0:02:52]}  Bc6 {[%clk 0:02:50]} 11. O-O {[%clk 0:02:52]}  O-O {[%clk 0:02:50]} 12. Bf4 {[%clk 0:02:43]}  Ne4 {[%clk 0:02:46]} 13. Nxe4 {[%clk 0:02:37]}  Bxe4 {[%clk 0:02:47]} 14. Be5 {[%clk 0:02:27]}  Bxe5 {[%clk 0:02:27]} 15. dxe5 {[%clk 0:02:27]}  Qg5 {[%clk 0:02:27]} 16. f3 {[%clk 0:02:27]}  Rad8 {[%clk 0:02:22]} 17. Qc1 {[%clk 0:02:22]}  Rd2 {[%clk 0:02:10]} 18. Rf2 {[%clk 0:02:19]}  Qe3 {[%clk 0:02:03]} 19. Qe1 {[%clk 0:02:06]}  Bc6 {[%clk 0:01:52]} 20. Bf1 {[%clk 0:02:05]}  Qxe1 {[%clk 0:01:49]} 21. Rxe1 {[%clk 0:02:03]}  Rfd8 {[%clk 0:01:50]} 22. b3 {[%clk 0:01:53]}  Kf7 {[%clk 0:01:45]} 23. Ree2 {[%clk 0:01:44]}  Rd1 {[%clk 0:01:43]} 24. h3 {[%clk 0:01:31]}  f4 {[%clk 0:01:34]} 25. Rb2 {[%clk 0:01:28]}  Re1 {[%clk 0:01:30]} 26. Rfd2 {[%clk 0:01:23]}  Rxd2 {[%clk 0:01:26]} 27. Rxd2 {[%clk 0:01:24]}  Rxe5 {[%clk 0:01:25]} 28. Kf2 {[%clk 0:01:23]}  Ke7 {[%clk 0:01:20]} 29. h4 {[%clk 0:01:21]}  Rh5 {[%clk 0:01:19]} 30. g3 {[%clk 0:01:16]}  fxg3+ {[%clk 0:01:20]} 31. Kxg3 {[%clk 0:01:17]}  Rf5 {[%clk 0:01:18]} 32. Be2 {[%clk 0:01:16]}  e5 {[%clk 0:01:14]} 33. Rd3 {[%clk 0:01:15]}  Rf6 {[%clk 0:01:10]} 34. Re3 {[%clk 0:01:15]}  Re6 {[%clk 0:01:05]} 35. b4 {[%clk 0:01:14]}  a6 {[%clk 0:01:02]} 36. b5 {[%clk 0:01:11]}  axb5 {[%clk 0:01:03]} 37. cxb5 {[%clk 0:01:11]}  Bd5 {[%clk 0:01:04]} 38. a4 {[%clk 0:01:11]}  Kd6 {[%clk 0:00:54]} 39. a5 {[%clk 0:01:10]}  Kc5 {[%clk 0:00:53]} 40. a6 {[%clk 0:01:09]}  bxa6 {[%clk 0:00:53]} 41. bxa6 {[%clk 0:01:10]}  Kb6 {[%clk 0:00:39]} 42. Ra3 {[%clk 0:01:03]}  Ka7 {[%clk 0:00:38]} 43. Ra5 {[%clk 0:01:03]}  Rd6 {[%clk 0:00:34]} 44. Kf2 {[%clk 0:01:00]}  e4 {[%clk 0:00:29]} 45. f4 {[%clk 0:01:00]}  Ba8 {[%clk 0:00:27]} 46. Ke3 {[%clk 0:00:57]}  Kb6 {[%clk 0:00:27]} 47. Re5 {[%clk 0:00:55]}  c5 {[%clk 0:00:24]} 48. Re7 {[%clk 0:00:55]}  Rd4 {[%clk 0:00:19]} 49. Rxh7 {[%clk 0:00:53]}  Ra4 {[%clk 0:00:18]} 50. Rg7 {[%clk 0:00:51]}  c4 {[%clk 0:00:16]} 51. Rxg6+ {[%clk 0:00:50]}  Kb5 {[%clk 0:00:17]} 52. Kd4 {[%clk 0:00:46]}  Kb4 {[%clk 0:00:07]} 53. Bxc4 {[%clk 0:00:44]}  e3 {[%clk 0:00:07]} 54. Re6 {[%clk 0:00:40]}  Ka5 {[%clk 0:00:05]} 55. Rxe3 {[%clk 0:00:40]}  Bc6 {[%clk 0:00:05]} 56. Re5+ {[%clk 0:00:39]}  Kb6 {[%clk 0:00:05]} 57. f5 {[%clk 0:00:26]}  Ra1 {[%clk 0:00:05]} 58. f6 {[%clk 0:00:24]}  Rd1+ {[%clk 0:00:05]} 59. Kc3 {[%clk 0:00:24]}  Rc1+ {[%clk 0:00:04]} 60. Kb3 {[%clk 0:00:24]}  Rb1+ {[%clk 0:00:04]} 61. Kc2 {[%clk 0:00:24]}  Rh1 {[%clk 0:00:04]} 62. f7 {[%clk 0:00:24]}  Rh2+ {[%clk 0:00:05]} 63. Kc3 {[%clk 0:00:24]}  Rf2 {[%clk 0:00:05]} 64. Re8 {[%clk 0:00:22]}  Bb5 {[%clk 0:00:04]} 65. Rb8+ {[%clk 0:00:21]}  Kxa6 {[%clk 0:00:02]} 66. Bxb5+ {[%clk 0:00:21]}  Ka5 {[%clk 0:00:02]} 67. Ra8+ {[%clk 0:00:20]}  Kxb5 {[%clk 0:00:01]} 68. f8=Q {[%clk 0:00:20]} 1-0


[Site "https://www.chess.com"]

[Event "Titled Tuesday Blitz March 08 Early 2022"]
[White "Miszler, Levente"]
[Black "Saravana, Krishnan P."]
[WhiteFideId "763276"]
[BlackFideId "5018382"]
[WhiteElo "1966"]
[BlackElo "2210"]
[Result "0-1"]
[Round "06"]
[TimeControl "180+1"]
[Date "2022.03.09"]
[WhiteClock "0:01:39"]
[BlackClock "0:01:59"]

1. Nf3 {[%clk 0:03:00]}  d5 {[%clk 0:02:57]} 2. d4 {[%clk 0:02:58]}  Nf6 {[%clk 0:02:57]} 3. Bg5 {[%clk 0:02:56]}  c6 {[%clk 0:02:55]} 4. e3 {[%clk 0:02:52]}  Qb6 {[%clk 0:02:52]} 5. Qc1 {[%clk 0:02:46]}  Bf5 {[%clk 0:02:48]} 6. Nbd2 {[%clk 0:02:43]}  e6 {[%clk 0:02:46]} 7. Bd3 {[%clk 0:02:37]}  Bg6 {[%clk 0:02:44]} 8. Bxg6 {[%clk 0:02:36]}  hxg6 {[%clk 0:02:43]} 9. O-O {[%clk 0:02:35]}  Bd6 {[%clk 0:02:43]} 10. h3 {[%clk 0:02:32]}  Nbd7 {[%clk 0:02:42]} 11. c4 {[%clk 0:02:32]}  Qc7 {[%clk 0:02:35]} 12. c5 {[%clk 0:02:32]}  Be7 {[%clk 0:02:34]} 13. Re1 {[%clk 0:02:32]}  Ne4 {[%clk 0:02:33]} 14. Bxe7 {[%clk 0:02:30]}  Kxe7 {[%clk 0:02:32]} 15. Nxe4 {[%clk 0:02:29]}  dxe4 {[%clk 0:02:32]} 16. Nd2 {[%clk 0:02:29]}  Nf6 {[%clk 0:02:32]} 17. Qc2 {[%clk 0:02:29]}  Rh4 {[%clk 0:02:28]} 18. b4 {[%clk 0:01:58]}  Rah8 {[%clk 0:02:25]} 19. a4 {[%clk 0:01:58]}  g5 {[%clk 0:02:15]} 20. b5 {[%clk 0:01:58]}  g4 {[%clk 0:02:15]} 21. bxc6 {[%clk 0:01:58]}  bxc6 {[%clk 0:02:13]} 22. Rab1 {[%clk 0:01:57]}  gxh3 {[%clk 0:02:11]} 23. g3 {[%clk 0:01:57]}  Rg4 {[%clk 0:02:09]} 24. Kh2 {[%clk 0:01:48]}  Rxg3 {[%clk 0:02:07]} 25. fxg3 {[%clk 0:01:47]}  Ng4+ {[%clk 0:02:07]} 26. Kh1 {[%clk 0:01:46]}  Qxg3 {[%clk 0:02:03]} 27. Nxe4 {[%clk 0:01:41]}  Qf3+ {[%clk 0:02:03]} 28. Kg1 {[%clk 0:01:40]}  h2+ {[%clk 0:02:03]} 29. Qxh2 {[%clk 0:01:39]}  Rxh2 {[%clk 0:01:59]} 0-1


[Site "https://www.chess.com"]

[Event "Titled Tuesday Blitz March 08 Early 2022"]
[White "Muradov, Soltan"]
[Black "Artemenko, Oleg"]
[WhiteFideId "14002108"]
[BlackFideId "14201798"]
[WhiteElo "1854"]
[BlackElo "2287"]
[Result "0-1"]
[Round "06"]
[TimeControl "180+1"]
[Date "2022.03.09"]
[WhiteClock "0:00:11"]
[BlackClock "0:01:21"]

1. d4 {[%clk 0:03:00]}  Nf6 {[%clk 0:03:00]} 2. Nf3 {[%clk 0:03:00]}  e6 {[%clk 0:03:00]} 3. Bf4 {[%clk 0:03:00]}  c5 {[%clk 0:03:00]} 4. c3 {[%clk 0:03:00]}  Nc6 {[%clk 0:02:59]} 5. e3 {[%clk 0:03:00]}  d5 {[%clk 0:02:58]} 6. Nbd2 {[%clk 0:02:59]}  Be7 {[%clk 0:02:58]} 7. h3 {[%clk 0:02:59]}  Bd6 {[%clk 0:02:57]} 8. Bxd6 {[%clk 0:02:47]}  Qxd6 {[%clk 0:02:58]} 9. Bd3 {[%clk 0:02:37]}  O-O {[%clk 0:02:55]} 10. dxc5 {[%clk 0:02:37]}  Qxc5 {[%clk 0:02:54]} 11. Qe2 {[%clk 0:02:36]}  e5 {[%clk 0:02:49]} 12. e4 {[%clk 0:02:36]}  Qb6 {[%clk 0:02:36]} 13. b3 {[%clk 0:02:24]}  dxe4 {[%clk 0:02:31]} 14. Nxe4 {[%clk 0:02:24]}  Nd5 {[%clk 0:02:30]} 15. O-O {[%clk 0:01:23]}  Nf4 {[%clk 0:02:28]} 16. Qc2 {[%clk 0:01:23]}  Rd8 {[%clk 0:02:27]} 17. Rad1 {[%clk 0:01:21]}  h6 {[%clk 0:02:23]} 18. Bc4 {[%clk 0:00:55]}  Be6 {[%clk 0:02:01]} 19. Nd6 {[%clk 0:00:51]}  Qc7 {[%clk 0:01:50]} 20. Bxe6 {[%clk 0:00:50]}  Nxe6 {[%clk 0:01:51]} 21. Nc4 {[%clk 0:00:51]}  b5 {[%clk 0:01:49]} 22. Ne3 {[%clk 0:00:51]}  Nf4 {[%clk 0:01:47]} 23. Qe4 {[%clk 0:00:42]}  Rxd1 {[%clk 0:01:39]} 24. Rxd1 {[%clk 0:00:42]}  Ne2+ {[%clk 0:01:38]} 25. Kh1 {[%clk 0:00:34]}  Nxc3 {[%clk 0:01:38]} 26. Qc2 {[%clk 0:00:24]}  Nxd1 {[%clk 0:01:32]} 27. Nd5 {[%clk 0:00:21]}  Qd6 {[%clk 0:01:27]} 28. Qxc6 {[%clk 0:00:10]}  Nxf2+ {[%clk 0:01:25]} 29. Kg1 {[%clk 0:00:10]}  Qxc6 {[%clk 0:01:26]} 30. Ne7+ {[%clk 0:00:10]}  Kf8 {[%clk 0:01:27]} 31. Nxc6 {[%clk 0:00:11]}  Nd3 {[%clk 0:01:26]} 32. Kf1 {[%clk 0:00:10]}  Rc8 {[%clk 0:01:23]} 33. Ncxe5 {[%clk 0:00:08]}  Nxe5 {[%clk 0:01:22]} 34. Nxe5 {[%clk 0:00:09]}  Rc1+ {[%clk 0:01:23]} 35. Kf2 {[%clk 0:00:09]}  Rc2+ {[%clk 0:01:24]} 36. Kf3 {[%clk 0:00:09]}  Rxa2 {[%clk 0:01:23]} 37. g3 {[%clk 0:00:10]}  f6 {[%clk 0:01:22]} 38. Nd7+ {[%clk 0:00:09]}  Ke7 {[%clk 0:01:22]} 39. Nc5 {[%clk 0:00:09]}  Rc2 {[%clk 0:01:21]} 40. b4 {[%clk 0:00:09]}  Rxc5 {[%clk 0:01:20]} 41. bxc5 {[%clk 0:00:09]}  a5 {[%clk 0:01:20]} 42. Ke3 {[%clk 0:00:09]}  a4 {[%clk 0:01:20]} 43. Kd4 {[%clk 0:00:10]}  a3 {[%clk 0:01:20]} 44. Kc3 {[%clk 0:00:10]}  b4+ {[%clk 0:01:20]} 45. Kb3 {[%clk 0:00:11]}  Kd7 {[%clk 0:01:21]} 0-1


[Site "https://www.chess.com"]

[Event "Titled Tuesday Blitz March 08 Early 2022"]
[White "Neiksans, Arturs"]
[Black "Volkov, Maksim"]
[WhiteFideId "11601388"]
[BlackFideId "54123070"]
[WhiteElo "2447"]
[BlackElo "2081"]
[Result "1-0"]
[Round "06"]
[TimeControl "180+1"]
[Date "2022.03.08"]
[WhiteClock "0:00:06"]
[BlackClock "0:00:08"]

1. e4 {[%clk 0:02:54]}  c5 {[%clk 0:02:59]} 2. Nf3 {[%clk 0:02:54]}  d6 {[%clk 0:02:58]} 3. Bb5+ {[%clk 0:02:53]}  Nd7 {[%clk 0:02:56]} 4. d4 {[%clk 0:02:49]}  cxd4 {[%clk 0:02:54]} 5. Qxd4 {[%clk 0:02:49]}  a6 {[%clk 0:02:54]} 6. Bxd7+ {[%clk 0:02:49]}  Bxd7 {[%clk 0:02:54]} 7. Nc3 {[%clk 0:02:50]}  e6 {[%clk 0:02:52]} 8. O-O {[%clk 0:02:49]}  Nf6 {[%clk 0:02:52]} 9. Bg5 {[%clk 0:02:47]}  Bc6 {[%clk 0:02:48]} 10. Rad1 {[%clk 0:02:44]}  h6 {[%clk 0:02:40]} 11. Bh4 {[%clk 0:02:30]}  Be7 {[%clk 0:02:29]} 12. Qd3 {[%clk 0:02:15]}  Qc7 {[%clk 0:02:22]} 13. Rfe1 {[%clk 0:02:11]}  Rd8 {[%clk 0:02:16]} 14. Nd4 {[%clk 0:02:09]}  Bd7 {[%clk 0:02:10]} 15. Bg3 {[%clk 0:02:02]}  e5 {[%clk 0:02:03]} 16. Nf5 {[%clk 0:01:54]}  Bxf5 {[%clk 0:02:02]} 17. exf5 {[%clk 0:01:54]}  O-O {[%clk 0:02:01]} 18. Bh4 {[%clk 0:01:54]}  Qa5 {[%clk 0:01:46]} 19. a3 {[%clk 0:01:40]}  Kh8 {[%clk 0:01:36]} 20. Bxf6 {[%clk 0:01:36]}  Bxf6 {[%clk 0:01:37]} 21. Nd5 {[%clk 0:01:32]}  e4 {[%clk 0:01:30]} 22. Qb3 {[%clk 0:01:31]}  Be5 {[%clk 0:01:14]} 23. Rxe4 {[%clk 0:01:24]}  Rfe8 {[%clk 0:01:14]} 24. Rde1 {[%clk 0:01:14]}  Qc5 {[%clk 0:01:02]} 25. g3 {[%clk 0:01:06]}  Kh7 {[%clk 0:00:59]} 26. c3 {[%clk 0:01:02]}  b5 {[%clk 0:00:56]} 27. Kg2 {[%clk 0:01:02]}  Qc6 {[%clk 0:00:53]} 28. Qd1 {[%clk 0:00:50]}  Qd7 {[%clk 0:00:42]} 29. Qf3 {[%clk 0:00:47]}  Bf6 {[%clk 0:00:38]} 30. Qd3 {[%clk 0:00:41]}  Qxf5 {[%clk 0:00:30]} 31. g4 {[%clk 0:00:33]}  Qg6 {[%clk 0:00:29]} 32. h3 {[%clk 0:00:29]}  Rxe4 {[%clk 0:00:20]} 33. Qxe4 {[%clk 0:00:27]}  Qxe4+ {[%clk 0:00:20]} 34. Rxe4 {[%clk 0:00:27]}  Bh4 {[%clk 0:00:20]} 35. f4 {[%clk 0:00:25]}  Rf8 {[%clk 0:00:16]} 36. f5 {[%clk 0:00:23]}  Bg5 {[%clk 0:00:14]} 37. Kf3 {[%clk 0:00:20]}  h5 {[%clk 0:00:14]} 38. Re2 {[%clk 0:00:13]}  g6 {[%clk 0:00:12]} 39. f6 {[%clk 0:00:12]}  Rc8 {[%clk 0:00:11]} 40. b4 {[%clk 0:00:08]}  Rc4 {[%clk 0:00:10]} 41. Re7 {[%clk 0:00:08]}  Kg8 {[%clk 0:00:10]} 42. Re8+ {[%clk 0:00:08]}  Kh7 {[%clk 0:00:10]} 43. Rf8 {[%clk 0:00:09]}  hxg4+ {[%clk 0:00:10]} 44. hxg4 {[%clk 0:00:08]}  Kh6 {[%clk 0:00:10]} 45. Rxf7 {[%clk 0:00:08]}  Bd2 {[%clk 0:00:10]} 46. Rf8 {[%clk 0:00:06]}  Bxc3 {[%clk 0:00:10]} 47. f7 {[%clk 0:00:05]}  Kg7 {[%clk 0:00:10]} 48. Rd8 {[%clk 0:00:03]}  Kxf7 {[%clk 0:00:09]} 49. Rxd6 {[%clk 0:00:03]}  Bb2 {[%clk 0:00:10]} 50. Rxa6 {[%clk 0:00:03]}  Rd4 {[%clk 0:00:09]} 51. Ra7+ {[%clk 0:00:02]}  Kf8 {[%clk 0:00:08]} 52. Nf4 {[%clk 0:00:02]}  Rc4 {[%clk 0:00:08]} 53. Nxg6+ {[%clk 0:00:03]}  Ke8 {[%clk 0:00:08]} 54. Nf4 {[%clk 0:00:03]}  Rc3+ {[%clk 0:00:08]} 55. Ke4 {[%clk 0:00:03]}  Bxa3 {[%clk 0:00:08]} 56. Ne6 {[%clk 0:00:03]}  Bxb4 {[%clk 0:00:07]} 57. g5 {[%clk 0:00:03]}  Rc4+ {[%clk 0:00:07]} 58. Kf5 {[%clk 0:00:03]}  Bd2 {[%clk 0:00:07]} 59. Kf6 {[%clk 0:00:03]}  Bc3+ {[%clk 0:00:07]} 60. Kf5 {[%clk 0:00:03]}  Rc6 {[%clk 0:00:05]} 61. g6 {[%clk 0:00:04]}  b4 {[%clk 0:00:05]} 62. Rb7 {[%clk 0:00:04]}  Rc4 {[%clk 0:00:05]} 63. Kg5 {[%clk 0:00:03]}  Rc6 {[%clk 0:00:04]} 64. Kf5 {[%clk 0:00:03]}  Ra6 {[%clk 0:00:04]} 65. Nc7+ {[%clk 0:00:03]}  Kd8 {[%clk 0:00:04]} 66. Nxa6 {[%clk 0:00:03]}  b3 {[%clk 0:00:04]} 67. Rxb3 {[%clk 0:00:04]}  Bg7 {[%clk 0:00:05]} 68. Rf3 {[%clk 0:00:04]}  Bh6 {[%clk 0:00:06]} 69. Nc5 {[%clk 0:00:04]}  Ke8 {[%clk 0:00:07]} 70. Ne6 {[%clk 0:00:05]}  Ke7 {[%clk 0:00:07]} 71. Rh3 {[%clk 0:00:05]}  Bg7 {[%clk 0:00:08]} 72. Rh7 {[%clk 0:00:06]} 1-0


[Site "https://www.chess.com"]

[Event "Titled Tuesday Blitz March 08 Early 2022"]
[White "Nguyen, Thien Ngan"]
[Black "Guliyev, Namig"]
[WhiteFideId "12414816"]
[BlackFideId "13400363"]
[WhiteElo "1917"]
[BlackElo "2487"]
[Result "0-1"]
[Round "06"]
[TimeControl "180+1"]
[Date "2022.03.09"]
[WhiteClock "0:00:14"]
[BlackClock "0:01:24"]

1. e4 {[%clk 0:03:00]}  e6 {[%clk 0:02:53]} 2. d4 {[%clk 0:03:00]}  d5 {[%clk 0:02:54]} 3. e5 {[%clk 0:03:00]}  c5 {[%clk 0:02:53]} 4. c3 {[%clk 0:03:01]}  Qb6 {[%clk 0:02:54]} 5. Nf3 {[%clk 0:03:01]}  Bd7 {[%clk 0:02:54]} 6. Bd3 {[%clk 0:02:56]}  Bb5 {[%clk 0:02:52]} 7. a3 {[%clk 0:02:54]}  Nc6 {[%clk 0:02:49]} 8. O-O {[%clk 0:02:47]}  cxd4 {[%clk 0:02:47]} 9. cxd4 {[%clk 0:02:47]}  Bxd3 {[%clk 0:02:48]} 10. Qxd3 {[%clk 0:02:46]}  Nge7 {[%clk 0:02:48]} 11. b4 {[%clk 0:02:46]}  Nf5 {[%clk 0:02:48]} 12. Be3 {[%clk 0:02:46]}  Be7 {[%clk 0:02:48]} 13. Nc3 {[%clk 0:02:45]}  O-O {[%clk 0:02:46]} 14. Nxd5 {[%clk 0:02:45]}  Qd8 {[%clk 0:02:42]} 15. Nc3 {[%clk 0:02:39]}  Qd7 {[%clk 0:02:39]} 16. Rfd1 {[%clk 0:02:37]}  Rfd8 {[%clk 0:02:37]} 17. Rac1 {[%clk 0:02:25]}  Bf8 {[%clk 0:02:37]} 18. Ne4 {[%clk 0:02:21]}  h6 {[%clk 0:02:27]} 19. h3 {[%clk 0:01:53]}  a5 {[%clk 0:02:20]} 20. b5 {[%clk 0:01:52]}  Nce7 {[%clk 0:02:20]} 21. Nc5 {[%clk 0:01:45]}  Qd5 {[%clk 0:02:09]} 22. Na4 {[%clk 0:01:42]}  Nc8 {[%clk 0:01:57]} 23. Rc7 {[%clk 0:01:25]}  Rb8 {[%clk 0:01:53]} 24. Rdc1 {[%clk 0:01:15]}  Qa2 {[%clk 0:01:52]} 25. R1c3 {[%clk 0:01:00]}  Nfe7 {[%clk 0:01:43]} 26. Rc2 {[%clk 0:00:51]}  Qb1+ {[%clk 0:01:43]} 27. Kh2 {[%clk 0:00:47]}  Nd5 {[%clk 0:01:43]} 28. Nd2 {[%clk 0:00:43]}  Qa1 {[%clk 0:01:35]} 29. b6 {[%clk 0:00:29]}  Qxa3 {[%clk 0:01:31]} 30. Qxa3 {[%clk 0:00:20]}  Bxa3 {[%clk 0:01:30]} 31. Ne4 {[%clk 0:00:19]}  Ncxb6 {[%clk 0:01:28]} 32. Nxb6 {[%clk 0:00:19]}  Nxb6 {[%clk 0:01:29]} 33. R2c3 {[%clk 0:00:19]}  Nd5 {[%clk 0:01:26]} 34. R3c4 {[%clk 0:00:17]}  Nxc7 {[%clk 0:01:25]} 35. Rxc7 {[%clk 0:00:18]}  Bf8 {[%clk 0:01:24]} 36. Bd2 {[%clk 0:00:17]}  a4 {[%clk 0:01:24]} 37. Bc3 {[%clk 0:00:16]}  a3 {[%clk 0:01:25]} 38. f3 {[%clk 0:00:16]}  Rdc8 {[%clk 0:01:24]} 39. Rxc8 {[%clk 0:00:15]}  Rxc8 {[%clk 0:01:24]} 40. Kg3 {[%clk 0:00:14]}  a2 {[%clk 0:01:25]} 41. Bb2 {[%clk 0:00:14]}  Rc2 {[%clk 0:01:25]} 42. Ba1 {[%clk 0:00:14]}  Rc1 {[%clk 0:01:25]} 43. Bb2 {[%clk 0:00:14]}  Rb1 {[%clk 0:01:26]} 44. Bc3 {[%clk 0:00:14]}  Bb4 {[%clk 0:01:26]} 45. Kf4 {[%clk 0:00:13]}  Bxc3 {[%clk 0:01:25]} 46. Nxc3 {[%clk 0:00:14]}  a1=Q {[%clk 0:01:25]} 47. Nxb1 {[%clk 0:00:14]}  Qxb1 {[%clk 0:01:24]} 0-1


[Site "https://www.chess.com"]

[Event "Titled Tuesday Blitz March 08 Early 2022"]
[White "Omariev, Maksim"]
[Black "Necula, Iulian"]
[WhiteFideId "4193423"]
[BlackFideId "1232380"]
[WhiteElo "2420"]
[BlackElo "1776"]
[Result "1-0"]
[Round "06"]
[TimeControl "180+1"]
[Date "2022.03.09"]
[WhiteClock "0:00:03"]
[BlackClock "0:00:11"]

1. g4 {[%clk 0:02:45]}  d6 {[%clk 0:02:57]} 2. Bg2 {[%clk 0:02:44]}  c6 {[%clk 0:02:53]} 3. h3 {[%clk 0:02:43]}  f5 {[%clk 0:02:49]} 4. gxf5 {[%clk 0:02:37]}  Bxf5 {[%clk 0:02:49]} 5. e4 {[%clk 0:02:37]}  Bg6 {[%clk 0:02:47]} 6. d4 {[%clk 0:02:36]}  Nf6 {[%clk 0:02:45]} 7. Nc3 {[%clk 0:02:35]}  Nbd7 {[%clk 0:02:39]} 8. f4 {[%clk 0:02:28]}  e5 {[%clk 0:02:26]} 9. dxe5 {[%clk 0:02:26]}  dxe5 {[%clk 0:02:25]} 10. f5 {[%clk 0:02:21]}  Bf7 {[%clk 0:02:24]} 11. Be3 {[%clk 0:02:19]}  Bb4 {[%clk 0:02:22]} 12. Ne2 {[%clk 0:02:19]}  O-O {[%clk 0:02:20]} 13. Qd2 {[%clk 0:02:05]}  Qa5 {[%clk 0:02:17]} 14. a3 {[%clk 0:01:56]}  Rad8 {[%clk 0:02:09]} 15. O-O {[%clk 0:01:56]}  Bc5 {[%clk 0:02:02]} 16. b4 {[%clk 0:01:54]}  Bxe3+ {[%clk 0:02:02]} 17. Qxe3 {[%clk 0:01:55]}  Qc7 {[%clk 0:02:01]} 18. Rfd1 {[%clk 0:01:52]}  b6 {[%clk 0:02:00]} 19. Rd2 {[%clk 0:01:48]}  c5 {[%clk 0:01:55]} 20. Rad1 {[%clk 0:01:41]}  cxb4 {[%clk 0:01:53]} 21. axb4 {[%clk 0:01:42]}  Nb8 {[%clk 0:01:45]} 22. Nb5 {[%clk 0:01:39]}  Qe7 {[%clk 0:01:41]} 23. Rxd8 {[%clk 0:01:27]}  Rxd8 {[%clk 0:01:41]} 24. Rxd8+ {[%clk 0:01:28]}  Qxd8 {[%clk 0:01:41]} 25. Nxa7 {[%clk 0:01:29]}  Qd1+ {[%clk 0:01:39]} 26. Kf2 {[%clk 0:01:22]}  Qxc2 {[%clk 0:01:39]} 27. Qxb6 {[%clk 0:01:22]}  Nbd7 {[%clk 0:01:37]} 28. Qc6 {[%clk 0:01:15]}  Bc4 {[%clk 0:01:22]} 29. Bf3 {[%clk 0:01:03]}  Qd3 {[%clk 0:01:21]} 30. b5 {[%clk 0:00:41]}  Nc5 {[%clk 0:01:12]} 31. Qxc5 {[%clk 0:00:39]}  Nxe4+ {[%clk 0:01:11]} 32. Bxe4 {[%clk 0:00:37]}  Qxe4 {[%clk 0:01:12]} 33. Qe3 {[%clk 0:00:16]}  Qxf5+ {[%clk 0:01:12]} 34. Qf3 {[%clk 0:00:17]}  Qc2 {[%clk 0:00:59]} 35. b6 {[%clk 0:00:14]}  Bxe2 {[%clk 0:00:59]} 36. Qxe2 {[%clk 0:00:14]}  Qc5+ {[%clk 0:00:59]} 37. Qe3 {[%clk 0:00:15]}  Qc2+ {[%clk 0:00:59]} 38. Kg3 {[%clk 0:00:15]}  Qg6+ {[%clk 0:00:55]} 39. Kh2 {[%clk 0:00:15]}  e4 {[%clk 0:00:51]} 40. Nb5 {[%clk 0:00:07]}  Qc6 {[%clk 0:00:44]} 41. Nc3 {[%clk 0:00:06]}  Qd6+ {[%clk 0:00:39]} 42. Kg2 {[%clk 0:00:06]}  Qg6+ {[%clk 0:00:38]} 43. Kh1 {[%clk 0:00:05]}  Qf5 {[%clk 0:00:33]} 44. Nxe4 {[%clk 0:00:05]}  Qf1+ {[%clk 0:00:33]} 45. Kh2 {[%clk 0:00:05]}  Qb5 {[%clk 0:00:30]} 46. Ng3 {[%clk 0:00:05]}  Qb2+ {[%clk 0:00:30]} 47. Kg1 {[%clk 0:00:05]}  h5 {[%clk 0:00:29]} 48. Qf2 {[%clk 0:00:04]}  Qb1+ {[%clk 0:00:28]} 49. Kg2 {[%clk 0:00:03]}  h4 {[%clk 0:00:25]} 50. Nf5 {[%clk 0:00:04]}  Qe4+ {[%clk 0:00:23]} 51. Kg1 {[%clk 0:00:04]}  Qb1+ {[%clk 0:00:22]} 52. Kh2 {[%clk 0:00:03]}  Qe4 {[%clk 0:00:20]} 53. Nxh4 {[%clk 0:00:03]}  Qe5+ {[%clk 0:00:20]} 54. Kh1 {[%clk 0:00:03]}  Qe4+ {[%clk 0:00:20]} 55. Ng2 {[%clk 0:00:03]}  Qb1+ {[%clk 0:00:19]} 56. Kh2 {[%clk 0:00:04]}  Qe4 {[%clk 0:00:18]} 57. Qg3 {[%clk 0:00:03]}  Qb7 {[%clk 0:00:17]} 58. Qc7 {[%clk 0:00:03]}  Qf3 {[%clk 0:00:11]} 59. b7 {[%clk 0:00:03]} 1-0


[Site "https://www.chess.com"]